fUSD/lending_fUSD_20240209
["ID","MTS","AMOUNT","RATE_DAILY","PERIOD"]
[313612010,1707478268946,-500.0,0.00041369,31]
[313612011,1707478268955,-500.0,0.00041369,31]
[313612012,1707478268965,-500.0,0.00041369,31]
[313612013,1707478268974,-500.0,0.00041369,2]
[313612014,1707478268983,-500.0,0.00041369,31]
[313612015,1707478268993,-603.34,0.00041369,31]
[313612016,1707478269003,-500.0,0.00041369,31]
[313612017,1707478269013,-500.0,0.00041369,31]
[313612018,1707478269021,-500.0,0.00041369,31]
[313612019,1707478269031,-500.0,0.00041369,31]
[313612020,1707478269040,-500.0,0.00041369,31]
[313612021,1707478269050,-500.0,0.00041369,31]
[313612022,1707478269059,-500.0,0.00041369,31]
[313612023,1707478269069,-508.2684249,0.00041369,31]
[313612024,1707478269078,-500.0,0.00041369,31]
[313612025,1707478269088,-500.0,0.00041369,31]
[313612026,1707478269097,-500.0,0.00041369,31]
[313612027,1707478269107,-500.0,0.00041369,31]
[313612028,1707478269116,-500.0,0.00041369,31]
[313612029,1707478269126,-500.0,0.00041369,31]
[313612030,1707478269135,-506.15797734,0.00041369,31]
[313612031,1707478269144,-500.0,0.00041369,31]
[313612032,1707478269153,-500.0,0.00041369,31]
[313612033,1707478269162,-500.0,0.00041369,31]
[313612034,1707478269171,-164.73236244,0.00041369,31]
[313612035,1707478269180,-500.0,0.00041369,31]
[313612036,1707478269189,-500.0,0.00041369,31]
[313612037,1707478269199,-500.0,0.00041369,31]
[313612038,1707478269208,-500.0,0.00041369,31]
[313612039,1707478269217,-500.0,0.00041369,31]
[313612040,1707478269227,-608.18,0.00041369,31]
[313612041,1707478269238,-500.0,0.00041369,31]
[313612042,1707478269248,-500.0,0.00041369,31]
[313612043,1707478269257,-500.0,0.00041369,31]
[313612044,1707478269268,-500.0,0.00041369,31]
[313612045,1707478269278,-500.0,0.00041369,31]
[313612046,1707478269287,-535.35642459,0.00041369,31]
[313612047,1707478269297,-864.71,0.00041369,31]
[313612048,1707478269306,-500.0,0.00041369,31]
[313612049,1707478269316,-500.0,0.00041369,31]
[313612050,1707478269326,-500.0,0.00041369,31]
[313612051,1707478269336,-500.0,0.00041369,31]
[313612052,1707478269345,-500.0,0.00041369,31]
[313612053,1707478269355,-500.0,0.00041369,31]
[313612054,1707478269364,-500.0,0.00041369,31]
[313612055,1707478269374,-500.0,0.00041369,31]
[313612056,1707478269384,-505.7164144,0.00041369,31]
[313612057,1707478269393,-500.0,0.00041369,31]
[313612058,1707478269403,-500.0,0.00041369,31]
[313612059,1707478269413,-500.0,0.00041369,31]
[313612060,1707478269423,-500.0,0.00041369,31]
[313612061,1707478269432,-576.93120524,0.00041369,31]
[313612062,1707478269442,-500.0,0.00041369,31]
[313612063,1707478269452,-500.0,0.00041369,31]
[313612064,1707478269461,-500.0,0.00041369,31]
[313612065,1707478269472,-502.56041875,0.00041369,31]
[313612066,1707478269481,-500.0,0.00041369,31]
[313612067,1707478269491,-500.0,0.00041369,31]
[313612068,1707478269502,-500.0,0.00041369,31]
[313612069,1707478269512,-500.0,0.00041369,31]
[313612070,1707478269521,-500.0,0.00041369,31]
[313612071,1707478269531,-500.0,0.00041369,31]
[313612072,1707478269540,-1070.25,0.00041369,31]
[313612073,1707478269549,-500.0,0.00041369,31]
[313612074,1707478269558,-500.0,0.00041369,31]
[313612075,1707478269568,-500.0,0.00041369,31]
[313612076,1707478269577,-500.0,0.00041369,31]
[313612077,1707478269586,-500.0,0.00041369,31]
[313612078,1707478269595,-500.0,0.00041369,31]
[313612079,1707478269604,-500.0,0.00041369,31]
[313612080,1707478269614,-500.0,0.00041369,31]
[313612081,1707478269623,-150.0,0.00041369,31]
[313612082,1707478269632,-500.0,0.00041369,31]
[313612083,1707478269643,-500.0,0.00041369,31]
[313612084,1707478269652,-500.0,0.00041369,31]
[313612085,1707478269665,-500.0,0.00041369,31]
[313612086,1707478269674,-500.0,0.00041369,31]
[313612087,1707478269682,-17.0507828,0.00041369,7]
[313612088,1707478270403,-482.9492172,0.00041369,7]
[313612089,1707478270414,-500.0,0.00041369,31]
[313612090,1707478270423,-500.0,0.00041369,31]
[313612091,1707478270433,-500.0,0.00041369,31]
[313612092,1707478270442,-500.0,0.00041369,31]
[313612093,1707478270451,-500.0,0.00041369,31]
[313612094,1707478270460,-489.36621413,0.00041369,31]
[313612095,1707478270470,-500.0,0.00041369,31]
[313612096,1707478270479,-500.0,0.00041369,31]
[313612097,1707478270489,-500.0,0.00041369,31]
[313612098,1707478270499,-500.0,0.00041369,31]
[313612099,1707478270509,-342.24172936,0.00041369,31]
[313612100,1707478270519,-500.0,0.00041369,31]
[313612101,1707478270528,-500.0,0.00041369,31]
[313612102,1707478270537,-500.0,0.00041369,31]
[313612103,1707478270546,-504.94021613,0.00041369,31]
[313612104,1707478270556,-500.0,0.00041369,31]
[313612105,1707478270565,-500.0,0.00041369,31]
[313612106,1707478270575,-500.0,0.00041369,31]
[313612107,1707478270584,-500.0,0.00041369,31]
[313612108,1707478270594,-500.0,0.00041369,31]
[313612109,1707478270603,-500.0,0.00041369,31]
[313612110,1707478270612,-523.36,0.00041369,31]
[313612111,1707478270622,-500.0,0.00041369,31]
[313612112,1707478270631,-500.0,0.00041369,31]
[313612113,1707478270641,-500.0,0.00041369,31]
[313612114,1707478270650,-500.0,0.00041369,31]
[313612115,1707478270661,-500.0,0.00041369,31]
[313612116,1707478270670,-500.0,0.00041369,31]
[313612117,1707478270679,-500.0,0.00041369,31]
[313612118,1707478270688,-500.0,0.00041369,31]
[313612119,1707478270697,-500.0,0.00041369,31]
[313612120,1707478270706,-500.0,0.00041369,31]
[313612121,1707478270715,-1000.0,0.00041369,7]
[313612122,1707478270724,-500.0,0.00041369,31]
[313612123,1707478270733,-500.0,0.00041369,31]
[313612124,1707478270743,-708.3,0.00041369,31]
[313612125,1707478270753,-500.0,0.00041369,30]
[313612126,1707478270765,-578.02464132,0.00041369,31]
[313612127,1707478270774,-500.0,0.00041369,31]
[313612128,1707478270783,-502.6,0.00041369,31]
[313612129,1707478270793,-500.0,0.00041369,31]
[313612130,1707478270802,-500.0,0.00041369,31]
[313612131,1707478270811,-500.0,0.00041369,31]
[313612132,1707478270821,-500.0,0.00041369,31]
[313612133,1707478270831,-500.0,0.00041369,31]
[313612134,1707478270841,-500.0,0.00041369,31]
[313612135,1707478270850,-500.0,0.00041369,31]
[313612136,1707478270859,-500.0,0.00041369,31]
[313612137,1707478270868,-500.0,0.00041369,31]
[313612138,1707478270878,-500.0,0.00041369,31]
[313612139,1707478270887,-500.0,0.00041369,31]
[313612140,1707478270897,-341.68394956,0.00041369,31]
[313612141,1707478270906,-500.0,0.00041369,31]
[313612142,1707478270916,-500.0,0.00041369,31]
[313612143,1707478270926,-500.0,0.00041369,31]
[313612144,1707478270935,-500.0,0.00041369,31]
[313612145,1707478270944,-500.0,0.00041369,31]
[313612146,1707478270954,-608.26,0.00041369,31]
[313612147,1707478270963,-500.0,0.00041369,31]
[313612148,1707478270973,-500.0,0.00041369,31]
[313612149,1707478270982,-500.0,0.00041369,31]
[313612150,1707478270993,-500.0,0.00041369,31]
[313612151,1707478271002,-508.51893362,0.00041369,31]
[313612152,1707478271011,-500.0,0.00041369,31]
[313612153,1707478271021,-226.91037634,0.00041369,31]
[313612154,1707478271034,-500.0,0.00041369,31]
[313612155,1707478271044,-500.0,0.00041369,31]
[313612156,1707478271053,-500.0,0.00041369,31]
[313612157,1707478271063,-500.0,0.00041369,31]
[313612158,1707478271072,-398.68457442,0.00041369,31]
[313612159,1707478271082,-500.0,0.00041369,31]
[313612160,1707478271091,-500.0,0.00041369,31]
[313612161,1707478271101,-500.0,0.00041369,31]
[313612162,1707478271110,-500.0,0.00041369,31]
[313612163,1707478271120,-750.95,0.00041369,31]
[313612164,1707478271129,-500.0,0.00041369,31]
[313612165,1707478271138,-500.0,0.00041369,31]
[313612166,1707478271148,-500.0,0.00041369,31]
[313612167,1707478271158,-500.0,0.00041369,31]
[313612168,1707478271167,-645.16389783,0.00041369,31]
[313612169,1707478271177,-500.0,0.00041369,31]
[313612170,1707478271187,-549.73,0.00041369,31]
[313612171,1707478271196,-500.0,0.00041369,31]
[313612172,1707478271206,-500.0,0.00041369,31]
[313612173,1707478271216,-934.6,0.00041369,31]
[313612174,1707478271226,-635.54,0.00041369,31]
[313612175,1707478271236,-2448.39,0.00041369,31]
[313612176,1707478271246,-376.67040644,0.00041369,31]
[313612177,1707478271256,-500.0,0.00041369,31]
[313612178,1707478271266,-500.0,0.00041369,31]
[313612179,1707478271275,-1269.53,0.00041369,31]
[313612180,1707478271285,-500.0,0.00041369,31]
[313612181,1707478271294,-500.0,0.00041369,31]
[313612182,1707478271307,-504.13613568,0.00041369,31]
[313612183,1707478271317,-500.0,0.00041369,31]
[313612184,1707478271327,-500.0,0.00041369,31]
[313612185,1707478271336,-560.02244799,0.00041369,31]
[313612186,1707478271346,-500.0,0.00041369,31]
[313612187,1707478271355,-500.0,0.00041369,31]
[313612188,1707478271365,-500.0,0.00041369,31]
[313612189,1707478271375,-1060.63,0.00041369,31]
[313612190,1707478271384,-2558.72,0.00041369,31]
[313612191,1707478271393,-500.0,0.00041369,31]
[313612192,1707478271403,-312.58429132,0.00041369,31]
[313612193,1707478271413,-587.57,0.00041369,31]
[313612194,1707478271422,-500.0,0.00041369,31]
[313612195,1707478271432,-900.16,0.00041369,31]
[313612196,1707478271442,-500.0,0.00041369,31]
[313612197,1707478271452,-2441.83,0.00041369,31]
[313612198,1707478271462,-500.0,0.00041369,31]
[313612199,1707478271472,-500.0,0.00041369,31]
[313612200,1707478271482,-500.0,0.00041369,31]
[313612201,1707478271492,-500.0,0.00041369,31]
[313612202,1707478271502,-593.44,0.00041369,31]
[313612203,1707478271511,-500.0,0.00041369,31]
[313612204,1707478271521,-500.0,0.00041369,31]
[313612205,1707478271531,-508.14605925,0.00041369,31]
[313612206,1707478271540,-1916.19,0.00041369,31]
[313612207,1707478271550,-785.82,0.00041369,31]
[313612208,1707478271560,-573.24,0.00041369,31]
[313612209,1707478271570,-500.0,0.00041369,31]
[313612210,1707478271579,-1020.44,0.00041369,31]
[313612211,1707478271588,-500.0,0.00041369,31]
[313612212,1707478271598,-500.0,0.00041369,31]
[313612213,1707478271607,-500.0,0.00041369,31]
[313612214,1707478271617,-500.0,0.00041369,31]
[313612215,1707478271626,-500.0,0.00041369,31]
[313612216,1707478271635,-500.0,0.00041369,31]
[313612217,1707478271645,-500.0,0.00041369,31]
[313612218,1707478271655,-1768.14,0.00041369,31]
[313612219,1707478271666,-23751.18,0.00041369,31]
[313612220,1707478271676,-5000.0,0.00041369,30]
[313612221,1707478271685,-1868.19,0.00041369,31]
[313612222,1707478271694,-500.0,0.00041369,31]
[313612223,1707478271704,-500.0,0.00041369,31]
[313612224,1707478271712,-500.0,0.00041369,31]
[313612225,1707478271722,-500.0,0.00041369,31]
[313612226,1707478271731,-527.69,0.00041369,31]
[313612227,1707478271741,-500.0,0.00041369,31]
[313612228,1707478271752,-500.0,0.00041369,31]
[313612229,1707478271762,-500.0,0.00041369,31]
[313612230,1707478271771,-500.0,0.00041369,31]
[313612231,1707478271780,-500.0,0.00041369,31]
[313612232,1707478271790,-500.0,0.00041369,31]
[313612233,1707478271799,-768.96,0.00041369,31]
[313612234,1707478271808,-500.0,0.00041369,31]
[313612235,1707478271818,-1820.33,0.00041369,31]
[313612236,1707478271828,-506.25130285,0.00041369,31]
[313612237,1707478271838,-500.0,0.00041369,31]
[313612238,1707478271847,-379.92740667,0.00041369,31]
[313612239,1707478271857,-758.25,0.00041369,31]
[313612240,1707478271867,-500.0,0.00041369,31]
[313612241,1707478271876,-582.58135428,0.00041369,10]
[313612242,1707478271886,-500.0,0.00041369,31]
[313612243,1707478271895,-500.0,0.00041369,31]
[313612244,1707478271904,-500.0,0.00041369,31]
[313612245,1707478271914,-500.0,0.00041369,31]
[313612246,1707478271923,-500.0,0.00041369,31]
[313612247,1707478271933,-500.0,0.00041369,31]
[313612248,1707478271943,-500.0,0.00041369,2]
[313612249,1707478271952,-500.0,0.00041369,31]
[313612250,1707478271961,-3159.24,0.00041369,31]
[313612251,1707478271971,-508.42,0.00041369,31]
[313612252,1707478271981,-500.0,0.00041369,31]
[313612253,1707478271990,-243.36200117,0.00041369,31]
[313612254,1707478272000,-500.0,0.00041369,31]
[313612255,1707478272010,-500.0,0.00041369,31]
[313612256,1707478272019,-12426.15,0.00041369,31]
[313612257,1707478272029,-174.26360794,0.00041369,31]
[313612258,1707478272038,-1006.35,0.00041369,31]
[313612259,1707478272047,-500.0,0.00041369,31]
[313612260,1707478272056,-2195.73,0.00041369,31]
[313612261,1707478272065,-500.0,0.00041369,31]
[313612262,1707478272075,-992.25,0.00041369,31]
[313612263,1707478272084,-500.0,0.00041369,31]
[313612264,1707478272094,-5742.83,0.00041369,31]
[313612265,1707478272112,-3030.08,0.00041369,31]
[313612266,1707478272123,-572.59,0.00041369,31]
[313612267,1707478272133,-500.0,0.00041369,31]
[313612268,1707478272142,-500.0,0.00041369,31]
[313612269,1707478272151,-500.0,0.00041369,31]
[313612270,1707478272161,-1081.74,0.00041369,31]
[313612271,1707478272170,-501.34,0.00041369,31]
[313612272,1707478272180,-1094.41,0.00041369,31]
[313612273,1707478272190,-500.0,0.00041369,31]
[313612274,1707478272199,-538.35,0.00041369,31]
[313612275,1707478272209,-1858.51,0.00041369,31]
[313612276,1707478272218,-589.77,0.00041369,31]
[313612277,1707478272228,-3522.27,0.00041369,31]
[313612278,1707478272237,-500.0,0.00041369,31]
[313612279,1707478272248,-1019.32,0.00041369,31]
[313612280,1707478272258,-500.0,0.00041369,31]
[313612281,1707478272268,-500.0,0.00041369,31]
[313612282,1707478272278,-500.0,0.00041369,31]
[313612283,1707478272287,-3738.97,0.00041369,31]
[313612284,1707478272298,-500.0,0.00041369,31]
[313612285,1707478272308,-1008.24,0.00041369,31]
[313612286,1707478272317,-500.0,0.00041369,31]
[313612287,1707478272327,-500.0,0.00041369,31]
[313612288,1707478272337,-500.0,0.00041369,31]
[313612289,1707478272348,-1350.59,0.00041369,31]
[313612290,1707478272358,-500.0,0.00041369,31]
[313612291,1707478272368,-559.59,0.00041369,31]
[313612292,1707478272378,-500.0,0.00041369,31]
[313612293,1707478272388,-5664.85,0.00041369,31]
[313612294,1707478272398,-1718.44,0.00041369,31]
[313612295,1707478272409,-500.0,0.00041369,31]
[313612296,1707478272420,-500.0,0.00041369,31]
[313612297,1707478272430,-500.0,0.00041369,31]
[313612298,1707478272440,-33946.94,0.00041369,31]
[313612299,1707478272450,-500.0,0.00041369,31]
[313612300,1707478272462,-500.0,0.00041369,31]
[313612301,1707478272472,-500.0,0.00041369,31]
[313612302,1707478272483,-500.0,0.00041369,31]
[313612303,1707478272493,-500.0,0.00041369,31]
[313612304,1707478272506,-152.08827304,0.00041369,31]
[313612305,1707478272516,-1574.94,0.00041369,31]
[313612306,1707478272527,-3084.08,0.00041369,31]
[313612307,1707478272536,-500.0,0.00041369,31]
[313612308,1707478272547,-10000.0,0.00041369,31]
[313612309,1707478272556,-1417.78,0.00041369,31]
[313612310,1707478272566,-500.0,0.00041369,31]
[313612311,1707478272575,-500.0,0.00041369,31]
[313612312,1707478272585,-500.0,0.00041369,30]
[313612313,1707478272595,-500.0,0.00041369,31]
[313612314,1707478272605,-810.02,0.00041369,31]
[313612315,1707478272614,-3365.23,0.00041369,31]
[313612316,1707478272625,-2364.9,0.00041369,31]
[313612317,1707478272634,-500.0,0.00041369,31]
[313612318,1707478272644,-500.0,0.00041369,31]
[313612319,1707478272654,-686.99,0.00041369,31]
[313612320,1707478272666,-500.0,0.00041369,31]
[313612321,1707478272675,-571.56,0.00041369,31]
[313612322,1707478272685,-645.23,0.00041369,31]
[313612323,1707478272695,-10000.0,0.00041369,31]
[313612324,1707478272705,-7344.38,0.00041369,31]
[313612325,1707478272715,-782.45,0.00041369,31]
[313612326,1707478272724,-1197.03,0.00041369,31]
[313612327,1707478272735,-500.0,0.00041369,31]
[313612328,1707478272744,-500.0,0.00041369,31]
[313612329,1707478272755,-9910.68,0.00041369,31]
[313612330,1707478272764,-500.0,0.00041369,31]
[313612331,1707478272774,-500.0,0.00041369,31]
[313612332,1707478272783,-966.84,0.00041369,31]
[313612333,1707478272792,-500.0,0.00041369,31]
[313612334,1707478272802,-662.91,0.00041369,31]
[313612335,1707478272815,-500.0,0.00041369,31]
[313612336,1707478272825,-500.0,0.00041369,31]
[313612337,1707478272835,-500.0,0.00041369,31]
[313612338,1707478272845,-503.45644111,0.00041369,31]
[313612339,1707478272854,-1542.36,0.00041369,31]
[313612340,1707478272864,-500.0,0.00041369,31]
[313612341,1707478272873,-500.0,0.00041369,31]
[313612342,1707478272883,-500.0,0.00041369,31]
[313612343,1707478272893,-500.0,0.00041369,31]
[313612344,1707478272903,-500.0,0.00041369,31]
[313612345,1707478272913,-590.37564553,0.00041369,31]
[313612346,1707478272923,-3079.55,0.00041369,31]
[313612347,1707478272933,-500.0,0.00041369,31]
[313612348,1707478272943,-500.0,0.00041369,31]
[313612349,1707478272953,-500.0,0.00041369,31]
[313612350,1707478272963,-500.0,0.00041369,31]
[313612351,1707478272972,-665.12,0.00041369,31]
[313612352,1707478272983,-14576.02,0.00041369,31]
[313612353,1707478272992,-500.0,0.00041369,31]
[313612354,1707478273004,-500.0,0.00041369,31]
[313612355,1707478273013,-500.0,0.00041369,31]
[313612356,1707478273023,-3728.94,0.00041369,31]
[313612357,1707478273033,-500.0,0.00041369,31]
[313612358,1707478273042,-500.0,0.00041369,31]
[313612359,1707478273051,-500.0,0.00041369,31]
[313612360,1707478273061,-500.0,0.00041369,31]
[313612361,1707478273070,-2772.18,0.00041369,31]
[313612362,1707478273080,-1534.74,0.00041369,31]
[313612363,1707478273089,-500.0,0.00041369,31]
[313612364,1707478273099,-4294.62,0.00041369,31]
[313612365,1707478273109,-500.0,0.00041369,31]
[313612366,1707478273118,-500.0,0.00041369,31]
[313612367,1707478273127,-512.69506182,0.00041369,31]
[313612368,1707478273137,-500.0,0.00041369,31]
[313612369,1707478273147,-633.14204908,0.00041369,7]
[313612370,1707478273157,-500.0,0.00041369,31]
[313612371,1707478273166,-500.0,0.00041369,31]
[313612372,1707478273175,-500.0,0.00041369,31]
[313612373,1707478273185,-500.0,0.00041369,31]
[313612374,1707478273194,-500.0,0.00041369,31]
[313612375,1707478273204,-503.07811215,0.00041369,31]
[313612376,1707478273213,-500.0,0.00041369,31]
[313612377,1707478273223,-4215.96,0.00041369,31]
[313612378,1707478273233,-500.0,0.00041369,31]
[313612379,1707478273242,-781.51,0.00041369,31]
[313612380,1707478273253,-500.0,0.00041369,31]
[313612381,1707478273262,-500.0,0.00041369,31]
[313612382,1707478273271,-2488.2,0.00041369,31]
[313612383,1707478273280,-500.0,0.00041369,31]
[313612384,1707478273290,-500.0,0.00041369,31]
[313612385,1707478273300,-505.39995146,0.00041369,31]
[313612386,1707478273309,-9324.82,0.00041369,31]
[313612387,1707478273318,-678.53,0.00041369,31]
[313612388,1707478273327,-500.0,0.00041369,31]
[313612389,1707478273340,-500.0,0.00041369,31]
[313612390,1707478273350,-675.49,0.00041369,31]
[313612391,1707478273360,-500.0,0.00041369,31]
[313612392,1707478273370,-500.0,0.00041369,31]
[313612393,1707478273380,-2748.5,0.00041369,31]
[313612394,1707478273390,-500.0,0.00041369,31]
[313612395,1707478273399,-500.0,0.00041369,31]
[313612396,1707478273409,-500.0,0.00041369,31]
[313612397,1707478273419,-500.0,0.00041369,31]
[313612398,1707478273428,-975.13,0.00041369,31]
[313612399,1707478273438,-500.0,0.00041369,31]
[313612400,1707478273448,-11844.96,0.00041369,31]
[313612401,1707478273457,-500.0,0.00041369,31]
[313612402,1707478273467,-500.0,0.00041369,31]
[313612403,1707478273477,-500.0,0.00041369,31]
[313612404,1707478273486,-1000.0,0.00041369,120]
[313612405,1707478273497,-500.0,0.00041369,31]
[313612406,1707478273506,-899.47,0.00041369,31]
[313612407,1707478273516,-626.57,0.00041369,31]
[313612408,1707478273526,-500.0,0.00041369,31]
[313612409,1707478273535,-500.0,0.00041369,31]
[313612410,1707478273545,-500.0,0.00041369,31]
[313612411,1707478273554,-1904.61,0.00041369,31]
[313612412,1707478273564,-1274.81,0.00041369,31]
[313612413,1707478273573,-500.0,0.00041369,31]
[313612414,1707478273583,-754.5,0.00041369,31]
[313612415,1707478273867,-500.0,0.00041369,31]
[313612416,1707478273876,-500.0,0.00041369,31]
[313612417,1707478273886,-1043.16,0.00041369,31]
[313612418,1707478273895,-623.51,0.00041369,31]
[313612419,1707478273904,-500.0,0.00041369,31]
[313612420,1707478273913,-523.87235586,0.00041369,31]
[313612421,1707478273922,-542.54,0.00041369,31]
[313612422,1707478273931,-500.0,0.00041369,31]
[313612423,1707478273940,-500.0,0.00041369,31]
[313612424,1707478273950,-3324.49,0.00041369,31]
[313612425,1707478273959,-3278.85,0.00041369,31]
[313612426,1707478273969,-2389.81,0.00041369,31]
[313612427,1707478273978,-29612.96,0.00041369,31]
[313612428,1707478273989,-500.0,0.00041369,31]
[313612429,1707478273998,-500.0,0.00041369,31]
[313612430,1707478274008,-4911.39,0.00041369,31]
[313612431,1707478274017,-500.0,0.00041369,31]
[313612432,1707478274027,-500.0,0.00041369,31]
[313612433,1707478274037,-13113.15,0.00041369,31]
[313612434,1707478274046,-6039.39,0.00041369,31]
[313612435,1707478274055,-362.910274,0.00041369,31]
[313612436,1707478274064,-3355.91,0.00041369,31]
[313612437,1707478274073,-2113.45,0.00041369,31]
[313612438,1707478274083,-500.0,0.00041369,31]
[313612439,1707478274093,-1572.14,0.00041369,31]
[313612440,1707478274103,-1246.04,0.00041369,31]
[313612441,1707478274114,-500.0,0.00041369,31]
[313612442,1707478274124,-602.59,0.00041369,31]
[313612443,1707478274134,-500.0,0.00041369,31]
[313612444,1707478274143,-1188.57,0.00041369,31]
[313612445,1707478274153,-696.99,0.00041369,31]
[313612446,1707478274162,-681.34,0.00041369,31]
[313612447,1707478274172,-1684.64,0.00041369,31]
[313612448,1707478274182,-1939.66,0.00041369,31]
[313612449,1707478274192,-500.0,0.00041369,31]
[313612450,1707478274201,-600.2,0.00041369,31]
[313612451,1707478274210,-500.0,0.00041369,31]
[313612452,1707478274220,-500.0,0.00041369,31]
[313612453,1707478274229,-799.87,0.00041369,31]
[313612454,1707478274238,-500.0,0.00041369,31]
[313612455,1707478274248,-500.0,0.00041369,31]
[313612456,1707478274257,-500.0,0.00041369,31]
[313612457,1707478274266,-500.0,0.00041369,31]
[313612458,1707478274276,-500.0,0.00041369,31]
[313612459,1707478274285,-559.12,0.00041369,31]
[313612460,1707478274295,-500.0,0.00041369,31]
[313612461,1707478274304,-935.99,0.00041369,31]
[313612462,1707478274314,-1044.42,0.00041369,31]
[313612463,1707478274323,-882.4,0.00041369,31]
[313612464,1707478274332,-500.0,0.00041369,31]
[313612465,1707478274342,-20153.9,0.00041369,31]
[313612466,1707478274351,-500.0,0.00041369,31]
[313612467,1707478274361,-640.35,0.00041369,31]
[313612468,1707478274370,-500.0,0.00041369,31]
[313612469,1707478274380,-25934.37,0.00041369,31]
[313612470,1707478274389,-500.0,0.00041369,31]
[313612471,1707478274399,-500.0,0.00041369,31]
[313612472,1707478274409,-622.6,0.00041369,31]
[313612473,1707478274418,-843.7,0.00041369,31]
[313612474,1707478274428,-500.0,0.00041369,31]
[313612475,1707478274437,-1000.0,0.00041369,7]
[313612476,1707478274446,-500.0,0.00041369,31]
[313612477,1707478274456,-515.22770471,0.00041369,31]
[313612478,1707478274466,-500.0,0.00041369,31]
[313612479,1707478274475,-2886.01,0.00041369,31]
[313612480,1707478274484,-2823.8,0.00041369,31]
[313612481,1707478274493,-306.23110801,0.00041369,31]
[313612482,1707478274504,-500.0,0.00041369,31]
[313612483,1707478274513,-500.0,0.00041369,31]
[313612484,1707478274523,-500.0,0.00041369,31]
[313612485,1707478274532,-500.0,0.00041369,31]
[313612486,1707478274542,-521.94,0.00041369,31]
[313612487,1707478274551,-500.0,0.00041369,31]
[313612488,1707478274560,-500.0,0.00041369,31]
[313612489,1707478274570,-500.0,0.00041369,31]
[313612490,1707478274579,-500.0,0.00041369,31]
[313612491,1707478274588,-500.0,0.00041369,31]
[313612492,1707478274597,-500.0,0.00041369,31]
[313612493,1707478274607,-1268.04,0.00041369,31]
[313612494,1707478274617,-2930.63,0.00041369,31]
[313612495,1707478274626,-500.0,0.00041369,31]
[313612496,1707478274635,-745.9,0.00041369,31]
[313612497,1707478274645,-4064.43,0.00041369,31]
[313612498,1707478274654,-778.82,0.00041369,31]
[313612499,1707478274665,-666.5,0.00041369,31]
[313612500,1707478274674,-812.31,0.00041369,31]
[313612501,1707478274683,-500.0,0.00041369,31]
[313612502,1707478274692,-500.0,0.00041369,31]
[313612503,1707478274702,-963.44,0.00041369,31]
[313612504,1707478274711,-500.0,0.00041369,31]
[313612505,1707478274720,-2199.8,0.00041369,31]
[313612506,1707478274730,-500.0,0.00041369,31]
[313612507,1707478274739,-1387.08,0.00041369,31]
[313612508,1707478274749,-3128.15,0.00041369,31]
[313612509,1707478274758,-2386.69,0.00041369,31]